bitfinex/quotes_SOLUSD_20240930
["timestamp","ask_amount","ask_price","bid_price","bid_amount"]
[1727740018229,23.776884,152.72,152.65,1.30992101]
[1727740019432,0.8270209,152.73,152.65,1.30992101]
[1727740019758,1.6372535,152.72,152.65,48.26880593]
[1727740020047,0.8270209,152.73,152.65,48.26880593]
[1727740020253,0.8270209,152.73,152.66,1.30980116]
[1727740020461,0.8270209,152.73,152.67,22.6012011]
[1727740020750,0.8270209,152.73,152.68,48.26880593]
[1727740021123,0.8270209,152.73,152.69,21.30942446]
[1727740021325,0.8270209,152.73,152.69,20.0]
[1727740021533,0.8270209,152.73,152.69,21.30939034]
[1727740022055,0.8270209,152.73,152.69,20.0]
[1727740022559,0.8270209,152.73,152.72,20.0]
[1727740022750,0.8270209,152.73,152.72,21.30909363]
[1727740022954,0.8270209,152.73,152.72,20.0]
[1727740023259,1.63643761,152.83,152.74,20.0]
[1727740023442,6.5428,152.84,152.74,68.26880593]
[1727740023639,6.5428,152.84,152.72,22.0373]
[1727740023640,8.17963897,152.82,152.72,22.0373]
[1727740023954,8.17963897,152.82,152.73,20.0]
[1727740023955,6.5441,152.81,152.73,20.0]
[1727740024170,1.6365473,152.8,152.72,22.0373]
[1727740024461,6.5445,152.8,152.72,22.0373]
[1727740024635,1.63669306,152.79,152.72,22.0373]
[1727740024836,23.776884,152.78,152.68,70.17130593]
[1727740025157,1.63692083,152.77,152.68,21.9025]
[1727740025455,1.63692083,152.77,152.58,6.575]
[1727740025456,23.776884,152.76,152.64,22.2432]
[1727740025651,23.776884,152.74,152.64,22.2432]
[1727740025858,1.63720999,152.73,152.64,22.2432]
[1727740026049,23.776884,152.72,152.64,22.2432]
[1727740026430,1.63734884,152.71,152.64,22.2432]
[1727740026630,23.776884,152.72,152.64,22.2432]
[1727740027244,23.776884,152.7,152.6,22.2432]
[1727740027455,23.776884,152.68,152.6,22.2432]
[1727740028761,23.776884,152.68,152.61,20.0]
[1727740028947,1.63783608,152.67,152.61,20.0]
[1727740029635,23.776884,152.68,152.56,70.08110593]
[1727740029843,38.8915,152.72,152.56,70.08110593]
[1727740029844,30.327384,152.66,152.56,70.08110593]
[1727740030162,1.6381696,152.65,152.56,70.08110593]
[1727740030471,23.776884,152.64,152.56,70.08110593]
[1727740030757,30.328384,152.64,152.56,70.08110593]
[1727740031165,23.776884,152.64,152.56,70.08110593]
[1727740033563,23.776884,152.64,152.57,1.31066464]
[1727740034070,23.776884,152.64,152.47,23.776884]
[1727740034071,23.776884,152.6,152.52,21.8123]
[1727740034236,23.776884,152.6,152.5,48.26880593]
[1727740034237,1.63870512,152.59,152.5,48.26880593]
[1727740034560,1.63870512,152.59,152.44,93.85798993]
[1727740034561,6.5548,152.56,152.44,93.85798993]
[1727740034762,30.331084,152.58,152.44,93.85798993]
[1727740034941,30.331084,152.58,152.47,48.26880593]
[1727740035140,23.776884,152.58,152.5,48.26880593]
[1727740035345,23.776884,152.62,152.51,1.31103221]
[1727740035563,23.776884,152.62,152.53,48.26880593]
[1727740035735,23.776884,152.62,152.54,1.3108708]
[1727740035935,30.329184,152.62,152.53,48.26880593]
[1727740036258,23.776884,152.62,152.54,1.31090696]
[1727740037845,23.776884,152.62,152.53,48.26880593]
[1727740038560,23.776884,152.62,152.54,1.31087194]
[1727740038763,16.3119,152.63,152.54,1.31087194]
[1727740038764,16.3119,152.63,152.54,21.31087194]
[1727740039144,16.3119,152.63,152.56,48.26880593]
[1727740039454,6.3538,152.64,152.57,1.31068325]
[1727740039659,16.4865,152.67,152.58,29.73202029]
[1727740040758,16.4865,152.67,152.52,22.3667]
[1727740040759,18.12472769,152.67,152.53,20.0]
[1727740040958,23.776884,152.66,152.53,20.0]
[1727740041137,6.5522,152.62,152.53,20.0]
[1727740041338,1.63859045,152.61,152.53,20.0]
[1727740041686,1.63859045,152.61,152.49,29.73202029]
[1727740041687,6.5535,152.59,152.49,29.73202029]
[1727740041847,25.41581288,152.58,152.49,29.73202029]
[1727740042154,23.776884,152.59,152.49,29.73202029]
[1727740043234,23.776884,152.59,152.5,20.0]
[1727740043638,22.5155,152.6,152.53,20.0]
[1727740043834,22.5155,152.6,152.54,1.31089265]
[1727740044066,22.5155,152.6,152.53,20.0]
[1727740045162,22.5155,152.6,152.52,29.73202029]
[1727740045370,23.776884,152.56,152.45,6.1217]
[1727740045570,22.5155,152.6,152.45,6.1217]
[1727740045571,23.776884,152.54,152.45,6.1217]
[1727740045746,1.63928626,152.53,152.45,6.1217]
[1727740046262,24.20598626,152.53,152.43,15.4164]
[1727740046572,29.995084,152.52,152.41,12.79601252]
[1727740046768,1.63949207,152.51,152.41,12.79601252]
[1727740046976,1.63949207,152.51,152.41,6.1217]
[1727740047463,1.63949207,152.51,152.4,29.73202029]
[1727740047685,1.63949207,152.51,152.4,48.42881553]
[1727740047686,23.776884,152.5,152.4,48.42881553]
[1727740047965,6.2182,152.52,152.43,48.42881553]
[1727740048767,1.63950404,152.51,152.43,48.42881553]
[1727740048965,1.63950547,152.5,152.4,48.42881553]
[1727740050161,23.776884,152.49,152.4,48.42881553]
[1727740050473,1.63986138,152.48,152.4,48.42881553]
[1727740051071,23.776884,152.51,152.41,21.31188962]
[1727740052071,6.2182,152.52,152.44,20.0]
[1727740052269,6.2182,152.52,152.46,48.42881553]
[1727740052448,6.2182,152.52,152.47,1.31145979]
[1727740053071,6.2182,152.52,152.46,48.42881553]
[1727740053470,1.63933381,152.51,152.46,48.42881553]
[1727740053676,6.2182,152.52,152.46,48.42881553]
[1727740054141,6.2182,152.52,152.44,20.0]
[1727740054474,6.2182,152.52,152.4,7.13436842]
[1727740054475,25.41646932,152.51,152.4,48.42881553]
[1727740054681,23.776884,152.51,152.4,48.42881553]
[1727740054969,6.2182,152.52,152.4,48.42881553]
[1727740055654,6.2182,152.52,152.41,20.0]
[1727740059454,6.2182,152.52,152.44,20.0]
[1727740059654,6.2182,152.52,152.45,1.31155947]
[1727740060148,6.1051,152.56,152.49,48.42881553]
[1727740060353,6.1051,152.56,152.5,1.3111423]
[1727740060563,6.1051,152.56,152.49,48.42881553]
[1727740061485,6.1051,152.56,152.5,1.31114736]
[1727740061773,6.1051,152.56,152.49,48.42881553]
[1727740062675,1.63884974,152.55,152.47,20.0]
[1727740063679,6.1051,152.56,152.47,20.0]
[1727740064374,6.1051,152.56,152.48,1.3113104]
[1727740064578,6.1051,152.56,152.49,48.42881553]
[1727740064884,6.1051,152.56,152.5,1.31124209]
[1727740065256,6.1051,152.56,152.49,48.42881553]
[1727740065769,6.1051,152.56,152.5,1.31124327]
[1727740066885,6.1051,152.56,152.52,48.42881553]
[1727740067178,6.1051,152.56,152.5,20.0]
[1727740067380,1.63896007,152.55,152.5,20.0]
[1727740067680,6.1051,152.56,152.48,20.0]
[1727740068092,6.1051,152.56,152.5,29.77333859]
[1727740068395,15.8525,152.57,152.53,29.77333859]
[1727740068777,6.0451,152.6,152.54,1.31100847]
[1727740069078,6.0451,152.6,152.54,21.31100847]
[1727740069488,6.0451,152.6,152.54,20.0]
[1727740069786,1.63840819,152.59,152.53,29.77333859]
[1727740069989,6.0451,152.6,152.5,29.77333859]
[1727740070193,12.5984,152.6,152.51,20.0]
[1727740070364,25.41567065,152.59,152.51,20.0]
[1727740070572,6.0451,152.6,152.53,29.77333859]
[1727740070878,6.0451,152.6,152.54,1.31090714]
[1727740071693,6.0451,152.6,152.54,21.31090714]
[1727740071870,6.0451,152.6,152.54,20.0]
[1727740072192,6.0451,152.6,152.55,1.31088385]
[1727740076492,16.3772,152.66,152.54,20.0]
[1727740076493,6.0806,152.65,152.59,29.77333859]
[1727740076709,6.0806,152.65,152.6,1.31039139]
[1727740077289,7.71845264,152.65,152.59,29.77333859]
[1727740077495,6.0806,152.65,152.6,1.31037647]
[1727740077702,15.1047,152.66,152.6,1.31037647]
[1727740079795,15.1047,152.66,152.6,21.31037647]
[1727740080181,8.27685318,152.65,152.54,9.10806581]
[1727740080406,23.776884,152.64,152.53,46.27123859]
[1727740080711,23.776884,152.62,152.53,29.77333859]
[1727740080891,1.63848706,152.61,152.53,29.77333859]
[1727740081089,16.3174,152.61,152.5,29.77333859]
[1727740081279,6.3742,152.59,152.5,29.77333859]
[1727740081483,6.3742,152.59,152.51,1.31092617]
[1727740081899,6.3742,152.59,152.5,29.77333859]
[1727740082489,6.3742,152.59,152.51,1.31092812]
[1727740082691,25.41552147,152.58,152.47,29.77333859]
[1727740082905,6.3742,152.59,152.47,29.77333859]
[1727740083185,6.3742,152.59,152.48,1.31105565]
[1727740083682,6.3742,152.59,152.5,29.77333859]
[1727740083899,6.3742,152.59,152.51,21.31104046]
[1727740084902,23.776884,152.58,152.51,21.31104046]
[1727740085096,6.3742,152.59,152.51,21.31104046]
[1727740087192,6.3742,152.59,152.51,20.0]
[1727740088618,12.928,152.59,152.51,1.3110526]
[1727740088900,12.928,152.59,152.48,29.77333859]
[1727740088901,30.330784,152.58,152.49,20.0]
[1727740089112,16.2,152.57,152.5,1.31120736]
[1727740091311,16.2,152.57,152.52,29.77333859]
[1727740091619,16.2,152.57,152.53,1.31096394]
[1727740092903,6.3742,152.59,152.53,1.31096394]
[1727740093113,15.785,152.61,152.56,20.0]
[1727740093287,15.785,152.61,152.57,1.31057081]
[1727740093489,6.3224,152.63,152.57,1.31057081]
[1727740093687,6.3224,152.63,152.58,29.77333859]
[1727740093914,1.63805458,152.62,152.56,20.0]
[1727740094410,6.3224,152.63,152.56,20.0]
[1727740094617,6.3224,152.63,152.57,1.31066649]
[1727740095394,17.76696461,152.62,152.55,29.77333859]
[1727740096012,17.76710568,152.62,152.55,29.77333859]
[1727740096310,16.1287,152.62,152.55,29.77333859]
[1727740096515,17.76710547,152.62,152.55,29.77333859]
[1727740097021,23.776884,152.61,152.52,29.77333859]
[1727740097310,23.776884,152.61,152.53,1.31092251]
[1727740097816,23.776884,152.61,152.54,1.3108515]
[1727740098020,16.1287,152.62,152.54,1.3108515]
[1727740098242,16.1287,152.62,152.58,29.77333859]
[1727740098516,16.1287,152.62,152.56,49.77333859]
[1727740098517,16.2518,152.66,152.61,29.77333859]
[1727740098730,16.2518,152.66,152.62,1.31024268]
[1727740099238,16.2518,152.66,152.61,29.77333859]
[1727740100002,17.88973204,152.66,152.61,29.77333859]
[1727740100327,1.6379402,152.65,152.64,29.77333859]
[1727740100614,21.9683,152.72,152.64,29.77333859]
[1727740102124,23.776884,152.71,152.64,29.77333859]
[1727740102320,21.9683,152.72,152.65,1.3100516]
[1727740102619,21.9683,152.72,152.64,29.77333859]
[1727740102919,1.63733739,152.71,152.64,29.77333859]
[1727740105308,23.776884,152.71,152.64,29.77333859]
[1727740105516,23.776884,152.71,152.65,1.3100429]
[1727740105804,23.776884,152.71,152.65,1.30999331]
[1727740106001,23.776884,152.71,152.64,29.77333859]
[1727740106201,25.41437837,152.71,152.64,29.77333859]
[1727740106699,23.776884,152.71,152.65,1.31002109]
[1727740106912,23.776884,152.71,152.64,29.77333859]
[1727740107823,1.14050879,152.77,152.67,29.77333859]
[1727740107824,22.1246,152.76,152.67,29.77333859]
[1727740108126,22.1246,152.76,152.68,1.30973156]
[1727740108813,22.1246,152.76,152.68,21.30973156]
[1727740109821,22.1246,152.76,152.68,1.30973156]
[1727740110028,23.776884,152.74,152.67,29.77333859]
[1727740110212,23.776884,152.75,152.68,1.30977435]
[1727740110723,23.776884,152.75,152.65,20.0]
[1727740110926,23.776884,152.75,152.67,29.77333859]
[1727740111124,23.776884,152.75,152.64,29.77333859]
[1727740111327,22.1246,152.76,152.64,29.77333859]
[1727740111328,23.776884,152.72,152.64,29.77333859]
[1727740112312,23.776884,152.73,152.65,1.30998031]
[1727740112714,23.776884,152.73,152.65,21.30998031]
[1727740113224,22.1246,152.76,152.67,29.77333859]
[1727740113450,22.1246,152.76,152.68,1.30962705]
[1727740113609,22.1246,152.76,152.67,29.77333859]
[1727740114211,22.1246,152.76,152.68,20.0]
[1727740114418,22.1246,152.76,152.69,1.30961238]
[1727740115408,22.1246,152.76,152.68,20.0]
[1727740115816,22.1246,152.76,152.69,1.30961005]
[1727740116718,22.1246,152.76,152.68,20.0]
[1727740117618,22.1246,152.76,152.69,1.30952387]
[1727740117817,1.63690615,152.75,152.68,20.0]
[1727740118222,22.1246,152.76,152.68,20.0]
[1727740118521,25.41388539,152.75,152.68,20.0]
[1727740119026,31.96058539,152.75,152.67,29.77333859]
[1727740119243,31.96058539,152.75,152.65,20.0]
[1727740119244,25.41415372,152.75,152.65,20.0]
[1727740119428,6.5474,152.74,152.62,15.3543]
[1727740119732,25.41435822,152.73,152.62,15.3543]
[1727740120528,31.96195822,152.73,152.62,15.3543]
[1727740120842,6.5496,152.68,152.59,6.0973]
[1727740121044,1.63790626,152.67,152.59,6.0973]
[1727740121637,23.776884,152.66,152.58,45.12763859]
[1727740121817,1.63806788,152.65,152.58,45.12763859]
[1727740122015,1.63806788,152.65,152.58,29.77333859]
[1727740123029,25.41496196,152.66,152.58,29.77333859]
[1727740123222,23.776884,152.68,152.58,29.77333859]
[1727740124121,23.776884,152.68,152.59,20.0]
[1727740124325,1.63789202,152.67,152.59,20.0]
[1727740124713,1.63789182,152.66,152.59,20.0]
[1727740125119,30.326484,152.68,152.59,20.0]
[1727740126331,30.326484,152.68,152.6,1.31038141]
[1727740127435,23.776884,152.68,152.6,1.31038141]
[1727740127740,6.2481,152.69,152.61,29.77333859]
[1727740127921,6.2481,152.69,152.62,20.0]
[1727740129730,6.2481,152.69,152.59,20.0]
[1727740129731,23.776884,152.68,152.59,20.0]
[1727740129927,6.2481,152.69,152.59,20.0]
[1727740129928,23.776884,152.66,152.59,20.0]
[1727740130234,23.776884,152.66,152.55,35.86423859]
[1727740130235,1.63813723,152.65,152.55,35.86423859]
[1727740130415,6.5517,152.64,152.52,29.77333859]
[1727740130622,15.858,152.65,152.52,29.77333859]
[1727740130623,31.96710304,152.63,152.52,29.77333859]
[1727740130815,31.96710304,152.63,152.51,6.2403]
[1727740130816,23.776884,152.61,152.51,6.2403]
[1727740131017,1.63862699,152.6,152.5,15.2663]
[1727740131216,6.136,152.62,152.5,15.2663]
[1727740131217,23.776884,152.59,152.5,15.2663]
[1727740131513,1.63885721,152.58,152.5,15.2663]
[1727740131823,1.63895416,152.57,152.46,30.90409019]
[1727740132140,16.4138,152.58,152.46,22.5283]
[1727740132141,23.776884,152.56,152.46,22.5283]
[1727740132311,22.9678,152.58,152.46,22.5283]
[1727740132312,23.776884,152.57,152.46,22.5283]
[1727740133034,23.776884,152.57,152.49,1.31128399]
[1727740133227,16.4138,152.58,152.49,20.0]
[1727740133835,23.776884,152.61,152.5,1.31098866]
[1727740134136,23.776884,152.61,152.52,29.77333859]
[1727740134525,30.329484,152.61,152.52,29.77333859]
[1727740134927,23.776884,152.59,152.49,20.0]
[1727740135623,31.96935106,152.59,152.49,20.0]
[1727740135836,23.776884,152.57,152.49,20.0]
[1727740138538,23.776884,152.55,152.49,20.0]
[1727740138736,1.63921703,152.54,152.49,20.0]
[1727740140630,1.63921703,152.54,152.47,20.0]
[1727740140821,23.776884,152.53,152.47,20.0]
[1727740141025,1.6394486,152.52,152.47,20.0]
[1727740141322,23.776884,152.53,152.45,29.77333859]
[1727740141526,23.776884,152.53,152.42,31.15409019]
[1727740141527,23.776884,152.51,152.42,46.35693859]
[1727740141733,23.1966,152.55,152.42,46.35693859]
[1727740141734,23.776884,152.49,152.42,46.35693859]
[1727740141944,23.1966,152.55,152.43,1.31186707]
[1727740142136,23.776884,152.54,152.45,29.77333859]
[1727740142333,23.776884,152.54,152.46,1.31156507]
[1727740143244,30.332484,152.54,152.45,29.77333859]
[1727740143833,23.776884,152.54,152.46,1.31160785]
[1727740144334,23.776884,152.54,152.45,29.77333859]
[1727740145243,23.776884,152.54,152.46,1.31159938]
[1727740146449,23.1966,152.55,152.47,1.31159381]
[1727740146774,1.14164689,152.63,152.51,29.77333859]
[1727740146775,21.8645,152.59,152.51,29.77333859]
[1727740146939,21.8645,152.59,152.5,15.6201]
[1727740146940,15.8006,152.59,152.54,29.77333859]
[1727740147251,1.63862682,152.58,152.54,29.77333859]
[1727740147552,1.63862682,152.58,152.52,20.0]
[1727740147751,15.8006,152.59,152.52,20.0]
[1727740147937,15.8006,152.59,152.51,20.0]
[1727740148251,15.8006,152.59,152.49,20.0]
[1727740148556,22.3542,152.59,152.49,20.0]
[1727740148744,1.63898287,152.58,152.49,20.0]
[1727740148944,23.776884,152.58,152.49,20.0]
[1727740149539,23.776884,152.56,152.46,15.6367]
[1727740149745,6.3683,152.57,152.42,12.96787635]
[1727740149746,23.776884,152.54,152.45,29.77333859]
[1727740149942,1.63941636,152.53,152.45,29.77333859]
[1727740150337,39.665384,152.52,152.42,51.51761766]
[1727740150651,1.63958156,152.51,152.42,44.83783859]
[1727740150957,15.8885,152.52,152.42,44.83783859]
[1727740151536,1.63958139,152.51,152.43,20.0]
[1727740151774,1.63958139,152.51,152.42,44.83783859]
[1727740151952,6.4848,152.5,152.42,29.77333859]
[1727740152256,1.63976838,152.49,152.42,29.77333859]
[1727740152839,6.4848,152.5,152.43,1.31191744]
[1727740153453,6.4848,152.5,152.42,29.77333859]
[1727740154147,6.4848,152.5,152.43,1.31188904]
[1727740154358,6.4848,152.5,152.43,21.31188904]
[1727740155552,6.4848,152.5,152.43,20.0]
[1727740155860,15.8885,152.52,152.43,20.0]
[1727740156062,15.8885,152.52,152.46,20.0]
[1727740157072,15.8885,152.52,152.46,21.31152568]
[1727740158756,15.8885,152.52,152.46,20.0]
[1727740159762,15.8885,152.52,152.45,29.77333859]
[1727740159970,1.63959976,152.51,152.42,29.77333859]
[1727740160148,23.776884,152.51,152.42,29.77333859]
[1727740160472,1.63971912,152.5,152.42,29.77333859]
[1727740160641,1.63980221,152.49,152.39,29.77333859]
[1727740161544,23.776884,152.51,152.39,29.77333859]
[1727740161751,23.776884,152.51,152.4,1.31187924]
[1727740162268,23.776884,152.51,152.4,21.31187924]
[1727740163077,23.776884,152.51,152.42,29.77333859]
[1727740163256,23.776884,152.51,152.43,1.31178538]
[1727740164663,23.776884,152.51,152.43,21.31178538]
[1727740164852,15.8885,152.52,152.43,21.31178538]
[1727740165046,15.8885,152.52,152.45,29.77333859]
[1727740165252,15.8885,152.52,152.46,1.31154939]
[1727740165772,15.8885,152.52,152.46,21.31154939]
[1727740167563,15.8885,152.52,152.46,20.0]
[1727740171055,15.8885,152.52,152.47,1.31150376]
[1727740173484,15.8885,152.52,152.46,20.0]
[1727740175069,15.8885,152.52,152.48,29.77333859]
[1727740175275,6.2573,152.54,152.49,1.31131027]
[1727740175574,6.2573,152.54,152.51,18.60337074]
[1727740177260,1.63914218,152.53,152.49,18.60337074]
[1727740177453,6.2573,152.54,152.49,18.60337074]
[1727740177659,6.2573,152.54,152.48,20.0]
[1727740178266,6.2573,152.54,152.45,20.0]
[1727740179979,6.2573,152.54,152.46,1.31156047]
[1727740180180,6.2573,152.54,152.47,29.77499738]
[1727740180382,6.2573,152.54,152.48,1.31142044]
[1727740184070,6.2573,152.54,152.47,29.77499738]
[1727740186185,6.2573,152.54,152.48,1.31148749]
[1727740186388,15.3757,152.56,152.53,29.77499738]
[1727740186591,15.2772,152.6,152.54,1.31089808]
[1727740186788,15.2772,152.6,152.56,29.77499738]
[1727740186984,15.2772,152.6,152.57,1.31073976]
[1727740187169,15.2772,152.6,152.56,29.77499738]
[1727740187372,15.2772,152.6,152.51,20.0]
[1727740187683,15.2772,152.6,152.5,20.0]
[1727740187887,6.561,152.59,152.5,21.31125826]
[1727740188467,6.561,152.59,152.55,29.77499738]
[1727740188982,15.2772,152.6,152.55,31.08580084]
[1727740189296,15.2772,152.6,152.55,29.77499738]
[1727740195074,6.551,152.65,152.55,29.77499738]
[1727740195391,6.551,152.65,152.56,1.31065621]
[1727740195694,6.5487,152.71,152.61,29.77499738]
[1727740197094,23.776884,152.7,152.62,1.3102432]
[1727740198597,23.776884,152.68,152.61,29.77499738]
[1727740198900,6.0697,152.73,152.67,29.77499738]
[1727740199398,1.63725319,152.72,152.68,6.5492]
[1727740199590,6.0697,152.73,152.68,6.5492]
[1727740200101,6.0697,152.73,152.69,6.5491]
[1727740200400,1.63738668,152.72,152.69,6.5491]
[1727740200801,6.0697,152.73,152.69,6.5491]
[1727740201680,23.776884,152.72,152.69,6.5491]
[1727740201992,30.325684,152.7,152.65,6.5508]
[1727740202194,30.325684,152.7,152.58,15.9622]
[1727740202195,23.776884,152.72,152.67,18.56941052]
[1727740202376,6.0697,152.73,152.71,6.5479]
[1727740202802,6.0697,152.73,152.7,6.5487]
[1727740203000,6.0697,152.73,152.67,18.56941052]
[1727740203199,6.0697,152.73,152.72,6.5479]
[1727740203402,6.0697,152.73,152.71,6.5483]
[1727740203780,6.0697,152.73,152.72,6.5479]
[1727740203998,26.51034482,152.82,152.71,18.56941052]
[1727740203999,6.0104,152.77,152.71,18.56941052]
[1727740204183,6.0104,152.77,152.65,16.2399]
[1727740204184,6.0104,152.77,152.76,6.5462]
[1727740205007,6.0104,152.77,152.74,6.5466]
[1727740205306,6.0104,152.77,152.75,6.5464]
[1727740205490,25.41361188,152.76,152.67,38.56941052]
[1727740205682,6.5478,152.73,152.67,6.5496]
[1727740205883,23.776884,152.72,152.65,18.56941052]
[1727740206203,23.776884,152.72,152.66,1.30996179]
[1727740206507,23.776884,152.74,152.69,6.5488]
[1727740206680,16.3998,152.75,152.73,6.5475]
[1727740206882,16.3998,152.75,152.72,6.5478]
[1727740210708,16.3998,152.75,152.67,29.69416472]
[1727740210884,16.3998,152.75,152.68,6.5492]
[1727740210885,23.776884,152.73,152.68,6.5492]
[1727740211215,1.63744662,152.72,152.68,6.5492]
[1727740212212,23.776884,152.73,152.68,6.5492]
[1727740212410,23.276884,152.73,152.68,6.5492]
[1727740212613,1.63743992,152.72,152.66,6.5501]
[1727740212915,29.824384,152.73,152.67,6.5499]
[1727740213406,6.5471,152.74,152.69,6.5492]
[1727740213602,6.0471,152.74,152.69,6.5492]
[1727740214485,23.776884,152.73,152.69,6.5492]
[1727740214686,25.41430458,152.74,152.64,29.69416472]
[1727740214916,23.776884,152.72,152.68,6.5495]
[1727740216512,23.776884,152.72,152.69,6.5488]
[1727740216687,16.3998,152.75,152.71,6.5483]
[1727740217012,22.9466,152.75,152.7,6.5486]
[1727740217708,1.6372582,152.74,152.7,6.5486]
[1727740217908,16.3998,152.75,152.67,29.69416472]
[1727740218092,16.3998,152.75,152.68,1.3097822]
[1727740218287,16.3998,152.75,152.68,21.3097822]
[1727740219009,6.0104,152.77,152.7,29.69416472]
[1727740219217,15.5495,152.8,152.71,1.30933916]
[1727740219391,15.5495,152.8,152.77,6.5457]
[1727740219909,15.5495,152.8,152.75,6.5462]
[1727740219910,1.63652609,152.79,152.75,6.5462]
[1727740220317,1.63652609,152.79,152.68,36.3587]
[1727740220523,23.776884,152.76,152.64,16.503]
[1727740220813,23.776884,152.72,152.67,6.5497]
[1727740221018,23.776884,152.72,152.66,6.5504]
[1727740221225,23.776884,152.7,152.66,6.5504]
[1727740222027,23.776884,152.7,152.65,6.5509]
[1727740223406,23.776884,152.7,152.66,6.5503]
[1727740224717,23.776884,152.7,152.68,6.5496]
[1727740225307,16.4938,152.74,152.63,1.31004516]
[1727740225504,16.4938,152.74,152.69,6.5492]
[1727740226194,23.0408,152.74,152.69,6.5492]
[1727740227010,23.776884,152.73,152.62,29.69416472]
[1727740227214,23.776884,152.73,152.68,6.5492]
[1727740227923,23.776884,152.73,152.69,6.5491]
[1727740229698,23.0409,152.74,152.67,6.55]
[1727740229699,23.776884,152.71,152.67,6.55]
[1727740229907,1.63764952,152.7,152.67,6.55]
[1727740230121,1.63764952,152.7,152.56,18.57053912]
[1727740230122,23.776884,152.69,152.56,15.0555]
[1727740230323,19.7,152.74,152.56,15.0555]
[1727740230324,23.776884,152.67,152.63,6.5513]
[1727740231222,23.776884,152.67,152.64,6.5512]
[1727740231416,1.63800604,152.66,152.57,18.57053912]
[1727740231608,16.0543,152.68,152.61,29.73074469]
[1727740231813,22.2333,152.72,152.68,6.5495]
[1727740232322,22.2333,152.72,152.69,6.5491]
[1727740232698,1.63747922,152.71,152.67,6.5496]
[1727740233305,23.776884,152.71,152.68,6.5495]
[1727740234605,1.63763554,152.7,152.66,6.5504]
[1727740234810,23.776884,152.69,152.66,6.5504]
[1727740235007,23.776884,152.71,152.62,1.31020461]
[1727740235430,23.776884,152.71,152.61,29.73074469]
[1727740235728,23.776884,152.71,152.68,6.5496]
[1727740238438,23.776884,152.69,152.67,6.55]
[1727740238605,1.63767004,152.68,152.67,6.55]
[1727740239216,23.776884,152.69,152.67,6.55]
[1727740240233,23.776884,152.71,152.67,6.55]
[1727740241131,15.6728,152.72,152.7,6.5487]
[1727740241326,21.5356,152.76,152.67,29.73074469]
[1727740241507,21.5356,152.76,152.72,6.5478]
[1727740243516,23.776884,152.75,152.72,6.5478]
[1727740244016,23.776884,152.75,152.65,20.0]
[1727740244017,1.63710799,152.74,152.65,20.0]
[1727740244226,23.776884,152.73,152.7,6.5486]
[1727740244629,23.776884,152.74,152.7,6.5486]
[1727740245138,30.323984,152.74,152.7,6.5486]
[1727740245312,23.776884,152.72,152.69,6.5491]
[1727740245513,23.776884,152.72,152.65,20.0]
[1727740245514,1.63740738,152.71,152.68,6.5495]
[1727740245841,23.776884,152.7,152.62,21.4013]
[1727740246132,23.776884,152.7,152.67,6.55]
[1727740246133,1.6376566,152.69,152.67,6.55]
[1727740246334,1.6376566,152.69,152.62,21.4013]
[1727740246511,1.6376566,152.69,152.66,6.5504]
[1727740247121,23.776884,152.7,152.66,6.5504]
[1727740247319,23.776884,152.7,152.64,29.73074469]
[1727740247518,41.2356,152.76,152.69,6.5492]
[1727740247519,23.776884,152.73,152.69,6.5492]
[1727740247923,30.324484,152.73,152.68,6.5495]
[1727740248328,1.63748307,152.72,152.68,6.5495]
[1727740248533,23.776884,152.71,152.68,6.5495]
[1727740248953,6.5476,152.73,152.68,6.5495]
[1727740248954,23.776884,152.72,152.68,6.5495]
[1727740249840,23.776884,152.7,152.64,29.73074469]
[1727740250043,23.776884,152.7,152.62,15.1212]
[1727740250044,1.6376428,152.69,152.62,15.1212]
[1727740250239,23.776884,152.7,152.62,15.1212]
[1727740250751,1.63770461,152.69,152.62,15.1212]
[1727740251141,1.63770461,152.69,152.67,6.55]
[1727740251439,1.63770461,152.69,152.62,15.1212]